[Event "4th Batumi Cup 2018"]
[Site "Batumi"]
[Date "2018.07.04"]
[Round "3"]
[White "Mosadeghpour, Masoud"]
[Black "Lomsadze, Davit"]
[Result "1/2-1/2"]
[ECO "C76"]
[WhiteElo "2531"]
[BlackElo "2348"]
[Annotator "ChessBase"]
[PlyCount "117"]
[EventDate "2018.07.03"]
[EventType "swiss"]
[EventCountry "GEO"]
[SourceTitle "playchess.com"]
[Source "ChessBase"]
[SourceQuality "1"]
[TimeControl "40/5400+30:1800+30"]

1. e4 {[%emt 0:14:19]} e5 {[%emt 0:00:00]} 2. Nf3 {[%emt 0:00:10]} Nc6 {[%emt 0:00:00]} 3. Bb5 {[%emt 0:00:13]} a6 {[%emt 0:00:00]} 4. Ba4 {[%emt 0:00:05]} d6 {[%emt 0:00:00]} 5. c3 {[%emt 0:01:06]} Bd7 {[%emt 0:00:00]} 6. O-O {[%emt 0:00:53]} g6 {[%emt 0:00:00]} 7. d4 {[%emt 0:00:22]} Bg7 {[%emt 0:00:00]} 8. Bg5 {[%emt 0:00:08]} f6 {[%emt 0:00:00]} 9. Be3 {[%emt 0:00:02]} Nh6 {[%emt 0:00:01]} 10. Re1 {[%emt 0:01:45]} O-O {[%emt 0:02:45]} 11. h3 {[%emt 0:08:16]} Kh8 {[%emt 0:02:51]} 12. Nbd2 {[%emt 0:03:59]} Nf7 {[%emt 0:03:06]} 13. Nf1 {[%emt 0:06:28]} Qe7 {[%emt 0:04:45]} 14. Ng3 {[%emt 0:00:48]} Rad8 {[%emt 0:07:12]} 15. Rc1 {[%emt 0:02:27]} Bh6 {[%emt 0:02:20]} 16. Bxh6 {[%emt 0:07:15]} Nxh6 {[%emt 0:00:06]} 17. Qd2 {[%emt 0:00:02]} Nf7 {[%emt 0:00:56]} 18. Bc2 {[%emt 0:06:32]} Ng5 {[%emt 0:03:53]} 19. Nh2 {[%emt 0:02:46]} Na5 {[%emt 0:01:28]} 20. Bd3 {[%emt 0:05:12]} b5 {[%emt 0:02:39]} 21. b4 {[%emt 0:05:14]} Nc4 {[%emt 0:04:48]} 22. Bxc4 {[%emt 0:03:14]} bxc4 {[%emt 0:00:03]} 23. Qe2 {[%emt 0:01:45]} Bb5 {[%emt 0:04:21]} 24. Ra1 {[%emt 0:04:38]} exd4 {[%emt 0:06:56]} 25. a4 {[%emt 0:04:58]} d3 {[%emt 0:08:32]} 26. Qa2 {[%emt 0:00:09]} Bc6 {[%emt 0:01:08]} 27. Qxc4 {[%emt 0:13:14]} d2 {[%emt 0:00:30]} 28. Red1 {[%emt 0:00:00]} Bb7 {[%emt 0:05:57]} 29. Rxd2 {[%emt 0:00:15]} Nxe4 {[%emt 0:01:27]} 30. Re2 {[%emt 0:01:39]} d5 {[%emt 0:01:10]} 31. Qd4 {[%emt 0:00:01]} Qg7 {[%emt 0:01:54]} 32. Qa7 {[%emt 0:01:54]} Ba8 {[%emt 0:02:05]} 33. Re3 {[%emt 0:05:06]} c5 {[%emt 0:06:51]} 34. Qxg7+ {[%emt 0:00:56]} Kxg7 {[%emt 0:00:01]} 35. bxc5 {[%emt 0:00:08]} f5 {[%emt 0:01:44]} 36. Ne2 {[%emt 0:00:28]} f4 {[%emt 0:01:43]} 37. Rf3 {[%emt 0:00:02]} g5 {[%emt 0:00:34]} 38. Nd4 {[%emt 0:01:25]} Nxc5 {[%emt 0:00:23]} 39. h4 {[%emt 0:00:43]} h6 {[%emt 0:01:21]} 40. g4 {[%emt 0:00:00]} Rc8 {[%emt 0:00:00]} 41. hxg5 {[%emt 0:03:40]} hxg5 {[%emt 0:06:57]} 42. Rh3 {[%emt 0:00:50]} Rh8 {[%emt 0:02:55]} 43. Rxh8 {[%emt 0:01:52]} Rxh8 {[%emt 0:00:05]} 44. Nhf3 {[%emt 0:00:51]} Kf6 {[%emt 0:02:51]} 45. Rb1 {[%emt 0:00:25]} Nxa4 {[%emt 0:00:56]} 46. Rb4 {[%emt 0:01:05]} Nxc3 {[%emt 0:00:37]} 47. Rb6+ {[%emt 0:00:02]} Ke7 {[%emt 0:00:10]} 48. Rxa6 {[%emt 0:03:23]} Ne4 {[%emt 0:01:21]} 49. Ne5 {[%emt 0:01:32]} Rc8 {[%emt 0:02:28]} 50. Nf5+ {[%emt 0:00:16]} Kd8 {[%emt 0:02:05]} 51. Ra7 {[%emt 0:01:03]} Rc1+ {[%emt 0:00:20]} 52. Kg2 {[%emt 0:00:11]} Bc6 {[%emt 0:00:12]} 53. Ne7 {[%emt 0:02:12]} Bb5 {[%emt 0:01:01]} 54. Nxd5 {[%emt 0:06:28]} Kc8 {[%emt 0:05:10]} 55. Ra2 {[%emt 0:08:28]} Rc5 {[%emt 0:02:32]} 56. Kf3 {[%emt 0:02:33]} Nd6 {[%emt 0:02:16]} 57. Rd2 {[%emt 0:01:06]} Kb7 {[%emt 0:00:38]} 58. Nxf4 {[%emt 0:00:58]} Rxe5 {[%emt 0:02:32]} 59. Rxd6 {[%emt 0:00:06]} 1/2-1/2

[Event "4th Batumi Cup 2018"]
[Site "Batumi"]
[Date "2018.07.04"]
[Round "3"]
[White "Maghalashvili, Davit"]
[Black "Jumabayev, Rinat"]
[Result "0-1"]
[ECO "A30"]
[WhiteElo "2508"]
[BlackElo "2594"]
[Annotator "ChessBase"]
[PlyCount "66"]
[EventDate "2018.07.03"]
[EventType "swiss"]
[EventCountry "GEO"]
[SourceTitle "playchess.com"]
[Source "ChessBase"]
[SourceQuality "1"]
[TimeControl "40/5400+30:1800+30"]

1. Nf3 {[%emt 0:00:00]} c5 {[%emt 0:10:54]} 2. c4 {[%emt 0:00:16]} Nc6 {[%emt 0:00:06]} 3. g3 {[%emt 0:00:26]} Nf6 {[%emt 0:02:14]} 4. Bg2 {[%emt 0:00:38]} d5 {[%emt 0:00:05]} 5. cxd5 {[%emt 0:02:14]} Nxd5 {[%emt 0:00:04]} 6. d4 {[%emt 0:02:54]} Nb6 {[%emt 0:05:07]} 7. dxc5 {[%emt 0:11:34]} Qxd1+ {[%emt 0:00:10]} 8. Kxd1 {[%emt 0:00:05]} Na4 {[%emt 0:00:36]} 9. b3 {[%emt 0:00:36]} Nxc5 {[%emt 0:00:07]} 10. Bb2 {[%emt 0:00:27]} Bf5 {[%emt 0:01:16]} 11. Nbd2 {[%emt 0:00:56]} Rd8 {[%emt 0:02:05]} 12. Ke1 {[%emt 0:04:33]} f6 {[%emt 0:00:56]} 13. Nh4 {[%emt 0:07:30]} Bd7 {[%emt 0:00:02]} 14. Ne4 {[%emt 0:05:29]} e5 {[%emt 0:00:16]} 15. Rc1 {[%emt 0:01:24]} Nxe4 {[%emt 0:07:04]} 16. Bxe4 {[%emt 0:00:08]} Bb4+ {[%emt 0:00:05]} 17. Bc3 {[%emt 0:01:43]} Ba3 {[%emt 0:00:05]} 18. Rd1 {[%emt 0:01:30]} Nb4 {[%emt 0:00:12]} 19. Bb1 {[%emt 0:08:34]} Rc8 {[%emt 0:10:38]} 20. Bxb4 {[%emt 0:19:32]} Bxb4+ {[%emt 0:00:11]} 21. Kf1 {[%emt 0:00:02]} Bh3+ {[%emt 0:00:27]} 22. Kg1 {[%emt 0:00:16]} Kf7 {[%emt 0:06:06]} 23. Bf5 {[%emt 0:09:38]} Rhd8 {[%emt 0:00:16]} 24. Ra1 {[%emt 0:00:16]} Bxf5 {[%emt 0:01:35]} 25. Nxf5 {[%emt 0:00:04]} Rc2 {[%emt 0:00:33]} 26. Kg2 {[%emt 0:07:30]} Rxe2 {[%emt 0:05:11]} 27. Rac1 {[%emt 0:00:50]} Ba5 {[%emt 0:08:19]} 28. Rhd1 {[%emt 0:03:57]} Rxd1 {[%emt 0:01:13]} 29. Rxd1 {[%emt 0:00:04]} Bb6 {[%emt 0:00:57]} 30. g4 {[%emt 0:02:44]} g6 {[%emt 0:00:52]} 31. Nd6+ {[%emt 0:00:26]} Ke6 {[%emt 0:00:17]} 32. Nc8 {[%emt 0:07:10]} Bd4 {[%emt 0:00:39]} 33. Rc1 {[%emt 0:00:07]} Kd7 {[%emt 0:00:48]} 0-1

[Event "4th Batumi Cup 2018"]
[Site "Batumi"]
[Date "2018.07.04"]
[Round "3"]
[White "Sindarov, Javokhir"]
[Black "Quparadze, Giga"]
[Result "1/2-1/2"]
[ECO "B49"]
[WhiteElo "2474"]
[BlackElo "2503"]
[Annotator "RC"]
[PlyCount "118"]
[EventDate "2018.07.03"]
[EventType "swiss"]
[EventCountry "GEO"]
[SourceTitle "playchess.com"]
[Source "ChessBase"]
[SourceQuality "1"]
[TimeControl "40/5400+30:1800+30"]

1. e4 {[%emt 0:00:00]} c5 {[%emt 0:00:00]} 2. Nf3 {[%emt 0:00:00]} e6 {[%emt 0:00:11]} 3. d4 {[%emt 0:00:00]} cxd4 {[%emt 0:00:05]} 4. Nxd4 {[%emt 0:00:00]} a6 {[%emt 0:00:07]} 5. Nc3 {[%emt 0:00:00]} Qc7 {[%emt 0:00:15]} 6. Be2 {[%emt 0:00:31]} Nc6 {[%emt 0:00:41]} 7. Be3 {[%emt 0:00:23]} b5 {[%emt 0:00:09]} 8. O-O {[%emt 0:03:58]} Bb7 {[%emt 0:00:16]} 9. f4 {[%emt 0:16:13]} Bc5 {[%emt 0:00:48]} 10. Qd2 {[%emt 0:01:49]} Nf6 {[%emt 0:01:02]} 11. e5 {[%emt 0:10:11]} Nxd4 {[%emt 0:00:15]} 12. Bxd4 {[%emt 0:00:04]} Ne4 {[%emt 0:00:11]} 13. Nxe4 {[%emt 0:00:03]} Bxe4 {[%emt 0:00:05]} 14. Bf3 {[%emt 0:01:12]} Bxf3 {[%emt 0:00:08]} 15. Rxf3 {[%emt 0:00:02]} Bxd4+ {[%emt 0:00:06]} 16. Qxd4 {[%emt 0:00:04]} Qa7 {[%emt 0:00:04]} 17. Rd1 {[%emt 0:00:40]} Ke7 {[%emt 0:00:25]} 18. f5 {[%emt 0:06:44]} exf5 {[%emt 0:02:10]} 19. Rxf5 {[%emt 0:00:09]} Qxd4+ {[%emt 0:00:33]} 20. Rxd4 {[%emt 0:00:05]} Rac8 {[%emt 0:00:04]} 21. Rf2 {[%emt 0:05:09]} Rc5 {[%emt 0:00:24]} 22. Rfd2 {[%emt 0:04:56]} Rd8 {[%emt 0:02:48]} 23. Rd6 {[%emt 0:00:54]} a5 {[%emt 0:00:04]} 24. R6d5 {[%emt 0:00:05]} Rxd5 {[%emt 0:00:05]} 25. Rxd5 {[%emt 0:00:03]} Rb8 {[%emt 0:00:05]} 26. Kf2 {[%emt 0:01:17]} Rc8 {[%emt 0:00:35]} 27. Rxb5 {[%emt 0:05:12]} Rxc2+ {[%emt 0:00:05]} 28. Kf3 {[%emt 0:00:05]} a4 {[%emt 0:00:05]} 29. Ra5 {[%emt 0:02:19]} Rxb2 {[%emt 0:00:21]} 30. Rxa4 {[%emt 0:00:01]} Ke6 {[%emt 0:00:11]} 31. Ra5 {[%emt 0:00:03]} h5 {[%emt 0:00:13]} 32. h4 {[%emt 0:01:22]} Rc2 {[%emt 0:03:57]} 33. g3 {[%emt 0:00:49]} g6 {[%emt 0:00:09]} 34. Kf4 {[%emt 0:01:16]} Rc4+ {[%emt 0:00:04]} 35. Ke3 {[%emt 0:02:34]} Rg4 {[%emt 0:00:06]} 36. Kf3 {[%emt 0:00:11]} Rd4 {[%emt 0:00:07]} 37. Ke3 {[%emt 0:00:09]} Rc4 {[%emt 0:00:05]} 38. Kf3 {[%emt 0:00:44]} Kf5 {[%emt 0:00:06]} 39. Rd5 {[%emt 0:00:15]} Rc3+ {[%emt 0:00:06]} 40. Kf2 {[%emt 0:00:00]} Ke6 {[%emt 0:00:00]} 41. Ra5 {[%emt 0:09:31]} Rd3 {[%emt 0:00:50]} 42. a4 {[%emt 0:00:05]} Kf5 {[%emt 0:00:30]} 43. Rb5 {[%emt 0:02:36]} Ke4 {[%emt 0:02:05]} 44. Kg2 {[%emt 0:05:59]} Rd2+ {[%emt 0:00:07]} 45. Kh3 {[%emt 0:00:04]} Rd5 {[%emt 0:02:51]} 46. Rxd5 {[%emt 0:00:24]} Kxd5 {[%emt 0:00:05]} 47. a5 {[%emt 0:00:03]} Kc5 {[%emt 0:00:27]} 48. g4 {[%emt 0:55:46]} Kb5 {[%emt 0:00:43]} 49. gxh5 {[%emt 0:00:00]} gxh5 {[%emt 0:00:05]} 50. Kg3 {[%emt 0:00:00]} Kxa5 {[%emt 0:00:06]} 51. Kf4 {[%emt 0:00:00]} d5 {[%emt 0:03:24]} 52. exd6 {[%emt 0:00:00]} Kb6 {[%emt 0:00:03]} 53. Kg5 {[%emt 0:00:00]} Kc6 {[%emt 0:00:05]} 54. Kxh5 {[%emt 0:00:00]} Kxd6 {[%emt 0:00:04]} 55. Kg5 {[%emt 0:00:00]} Ke7 {[%emt 0:00:09]} 56. h5 {[%emt 0:00:00]} Kf8 {[%emt 0:00:04]} 57. Kf6 {[%emt 0:00:00]} Kg8 {[%emt 0:00:03]} 58. h6 {[%emt 0:00:00]} Kh7 {[%emt 0:00:03]} 59. Kxf7 {[%emt 0:00:00]} Kxh6 {[%emt 0:00:02]} 1/2-1/2

[Event "4th Batumi Cup 2018"]
[Site "Batumi"]
[Date "2018.07.04"]
[Round "3"]
[White "Nigmatov, Ortik"]
[Black "Chkhaidze, Nikoloz"]
[Result "1-0"]
[ECO "D94"]
[WhiteElo "2461"]
[BlackElo "2337"]
[Annotator "ChessBase"]
[PlyCount "83"]
[EventDate "2018.07.03"]
[EventType "swiss"]
[EventCountry "GEO"]
[SourceTitle "playchess.com"]
[Source "ChessBase"]
[SourceQuality "1"]
[TimeControl "40/5400+30:1800+30"]

1. Nf3 {[%emt 0:00:00]} Nf6 {[%emt 0:00:00]} 2. e3 {[%emt 0:00:04]} g6 {[%emt 0:01:18]} 3. b3 {[%emt 0:01:40]} Bg7 {[%emt 0:00:22]} 4. Bb2 {[%emt 0:00:10]} O-O {[%emt 0:00:32]} 5. d4 {[%emt 0:01:03]} b6 {[%emt 0:03:28]} 6. Be2 {[%emt 0:02:18]} Bb7 {[%emt 0:00:07]} 7. O-O {[%emt 0:00:13]} d5 {[%emt 0:04:56]} 8. c4 {[%emt 0:00:32]} Nbd7 {[%emt 0:01:43]} 9. Nc3 {[%emt 0:07:13]} c5 {[%emt 0:02:10]} 10. Rc1 {[%emt 0:12:08]} Rc8 {[%emt 0:05:18]} 11. Re1 {[%emt 0:09:04]} dxc4 {[%emt 0:13:32]} 12. Bxc4 {[%emt 0:00:27]} a6 {[%emt 0:00:26]} 13. a4 {[%emt 0:00:17]} cxd4 {[%emt 0:20:06]} 14. exd4 {[%emt 0:01:46]} e6 {[%emt 0:00:10]} 15. Qe2 {[%emt 0:01:30]} a5 {[%emt 0:02:30]} 16. Rcd1 {[%emt 0:08:13]} Nd5 {[%emt 0:04:00]} 17. Nxd5 {[%emt 0:09:25]} Bxd5 {[%emt 0:05:48]} 18. Bxd5 {[%emt 0:01:08]} exd5 {[%emt 0:00:06]} 19. Qb5 {[%emt 0:07:01]} Nf6 {[%emt 0:01:23]} 20. Ne5 {[%emt 0:09:12]} Qd6 {[%emt 0:02:15]} 21. Rc1 {[%emt 0:01:19]} Rfe8 {[%emt 0:03:31]} 22. Qa6 {[%emt 0:06:31]} Qb8 {[%emt 0:04:06]} 23. Rxc8 {[%emt 0:07:56]} Rxc8 {[%emt 0:00:38]} 24. Rc1 {[%emt 0:00:01]} Rxc1+ {[%emt 0:08:04]} 25. Bxc1 {[%emt 0:00:01]} Ne4 {[%emt 0:00:10]} 26. Nc6 {[%emt 0:03:48]} Qd6 {[%emt 0:04:42]} 27. Qc8+ {[%emt 0:02:21]} Bf8 {[%emt 0:02:24]} 28. Bh6 {[%emt 0:00:07]} Nf6 {[%emt 0:01:08]} 29. Ne5 {[%emt 0:03:15]} Qe7 {[%emt 0:03:12]} 30. Bxf8 {[%emt 0:03:41]} Qxf8 {[%emt 0:00:04]} 31. Qb7 {[%emt 0:00:15]} Kg7 {[%emt 0:02:01]} 32. g3 {[%emt 0:00:02]} Ne4 {[%emt 0:02:39]} 33. Qxd5 {[%emt 0:01:09]} Nd2 {[%emt 0:00:10]} 34. Qb5 {[%emt 0:01:31]} Qa3 {[%emt 0:01:01]} 35. Qd3 {[%emt 0:00:30]} Nxb3 {[%emt 0:00:58]} 36. Qf3 {[%emt 0:00:57]} f5 {[%emt 0:02:26]} 37. Qb7+ {[%emt 0:00:17]} Kg8 {[%emt 0:00:26]} 38. Qc8+ {[%emt 0:00:49]} Kg7 {[%emt 0:00:25]} 39. Qb7+ {[%emt 0:00:18]} Kg8 {[%emt 0:00:05]} 40. Qf7+ {[%emt 0:00:00]} Kh8 {[%emt 0:00:00]} 41. Qf6+ {[%emt 0:00:41]} Kg8 {[%emt 0:00:07]} 42. Nc6 {[%emt 0:00:12]} 1-0

[Event "4th Batumi Cup 2018"]
[Site "Batumi"]
[Date "2018.07.04"]
[Round "3"]
[White "Duzhakov, Ilya"]
[Black "Pantsulaia, Levan"]
[Result "0-1"]
[ECO "A67"]
[WhiteElo "2448"]
[BlackElo "2575"]
[Annotator "ChessBase"]
[PlyCount "133"]
[EventDate "2018.07.03"]
[EventType "swiss"]
[EventCountry "GEO"]
[SourceTitle "playchess.com"]
[Source "ChessBase"]
[SourceQuality "1"]
[TimeControl "40/5400+30:1800+30"]

1. d4 {[%emt 0:06:24]} Nf6 {[%emt 0:00:00]} 2. c4 {[%emt 0:00:12]} c5 {[%emt 0:00:50]} 3. d5 {[%emt 0:00:20]} e6 {[%emt 0:01:13]} 4. Nc3 {[%emt 0:00:21]} exd5 {[%emt 0:00:09]} 5. cxd5 {[%emt 0:00:07]} d6 {[%emt 0:00:20]} 6. e4 {[%emt 0:01:04]} g6 {[%emt 0:00:08]} 7. f4 {[%emt 0:00:21]} Bg7 {[%emt 0:00:38]} 8. Bb5+ {[%emt 0:00:16]} Nfd7 {[%emt 0:00:15]} 9. Nf3 {[%emt 0:00:22]} a6 {[%emt 0:01:49]} 10. Bd3 {[%emt 0:00:36]} b5 {[%emt 0:00:13]} 11. O-O {[%emt 0:00:53]} O-O {[%emt 0:00:17]} 12. a3 {[%emt 0:08:31]} Re8 {[%emt 0:06:43]} 13. Kh1 {[%emt 0:00:52]} Nf6 {[%emt 0:01:25]} 14. e5 {[%emt 0:09:28]} dxe5 {[%emt 0:12:23]} 15. fxe5 {[%emt 0:00:43]} Ng4 {[%emt 0:13:08]} 16. d6 {[%emt 0:25:51]} Nxe5 {[%emt 0:02:57]} 17. Be4 {[%emt 0:03:16]} Ra7 {[%emt 0:07:43]} 18. Bg5 {[%emt 0:01:11]} Qd7 {[%emt 0:14:44]} 19. Nd5 {[%emt 0:12:46]} Nbc6 {[%emt 0:07:04]} 20. Bf6 {[%emt 0:18:29]} Ng4 {[%emt 0:13:15]} 21. Ng5 {[%emt 0:03:18]} Nce5 {[%emt 0:10:03]} 22. Nb6 {[%emt 0:04:27]} Ne3 {[%emt 0:01:21]} 23. Nxd7 {[%emt 0:00:29]} Nxd1 {[%emt 0:00:06]} 24. Nxe5 {[%emt 0:00:12]} Bxf6 {[%emt 0:00:14]} 25. Nc6 {[%emt 0:00:24]} Bxg5 {[%emt 0:00:47]} 26. Nxa7 {[%emt 0:00:09]} Ne3 {[%emt 0:00:45]} 27. Rfe1 {[%emt 0:01:37]} Bd7 {[%emt 0:01:30]} 28. Bf3 {[%emt 0:00:35]} Re6 {[%emt 0:00:16]} 29. Rac1 {[%emt 0:00:22]} c4 {[%emt 0:02:11]} 30. Rc3 {[%emt 0:00:01]} a5 {[%emt 0:00:11]} 31. h4 {[%emt 0:00:34]} b4 {[%emt 0:00:35]} 32. axb4 {[%emt 0:00:31]} axb4 {[%emt 0:00:01]} 33. hxg5 {[%emt 0:00:33]} bxc3 {[%emt 0:00:05]} 34. bxc3 {[%emt 0:00:01]} Nf5 {[%emt 0:00:53]} 35. Rxe6 {[%emt 0:01:21]} fxe6 {[%emt 0:01:37]} 36. Kg1 {[%emt 0:00:30]} Nxd6 {[%emt 0:00:26]} 37. Kf2 {[%emt 0:00:01]} Kf7 {[%emt 0:00:34]} 38. Bc6 {[%emt 0:01:05]} Ke7 {[%emt 0:01:15]} 39. Ke3 {[%emt 0:00:01]} Kd8 {[%emt 0:00:18]} 40. Kd4 {[%emt 0:00:00]} Kc7 {[%emt 0:00:00]} 41. Bxd7 {[%emt 0:01:12]} Kxd7 {[%emt 0:03:31]} 42. Ke5 {[%emt 0:00:24]} Nf5 {[%emt 0:01:04]} 43. Nb5 {[%emt 0:01:27]} Ne3 {[%emt 0:04:32]} 44. g3 {[%emt 0:02:18]} Ke7 {[%emt 0:04:14]} 45. Nc7 {[%emt 0:03:03]} Ng4+ {[%emt 0:03:13]} 46. Kf4 {[%emt 0:06:11]} Nf2 {[%emt 0:00:12]} 47. Ke5 {[%emt 0:00:42]} Nd3+ {[%emt 0:00:59]} 48. Kd4 {[%emt 0:01:01]} Nc1 {[%emt 0:00:00]} 49. Ke5 {[%emt 0:11:15]} Ne2 {[%emt 0:00:16]} 50. Nb5 {[%emt 0:00:17]} Nxg3 {[%emt 0:00:25]} 51. Na3 {[%emt 0:00:27]} Ne2 {[%emt 0:00:46]} 52. Nxc4 {[%emt 0:00:15]} Nxc3 {[%emt 0:00:08]} 53. Na5 {[%emt 0:00:50]} Kd7 {[%emt 0:04:50]} 54. Nc4 {[%emt 0:03:03]} Nd5 {[%emt 0:01:10]} 55. Nd6 {[%emt 0:02:08]} Nb6 {[%emt 0:01:25]} 56. Nb7 {[%emt 0:04:31]} Ke7 {[%emt 0:00:10]} 57. Ke4 {[%emt 0:00:22]} Nc4 {[%emt 0:00:43]} 58. Kd4 {[%emt 0:00:29]} Nd6 {[%emt 0:02:08]} 59. Nc5 {[%emt 0:00:05]} Nf7 {[%emt 0:00:53]} 60. Ne4 {[%emt 0:00:05]} Kd8 {[%emt 0:00:33]} 61. Ke3 {[%emt 0:01:37]} e5 {[%emt 0:01:38]} 62. Kf3 {[%emt 0:00:07]} Ke7 {[%emt 0:00:10]} 63. Kg4 {[%emt 0:00:04]} Ke6 {[%emt 0:01:20]} 64. Nc5+ {[%emt 0:00:08]} Kd5 {[%emt 0:00:48]} 65. Nd7 {[%emt 0:00:01]} e4 {[%emt 0:01:48]} 66. Kf4 {[%emt 0:00:27]} Nxg5 {[%emt 0:00:54]} 67. Nf6+ {[%emt 0:02:10]} 0-1

[Event "4th Batumi Cup 2018"]
[Site "Batumi"]
[Date "2018.07.04"]
[Round "3"]
[White "Sibashvili, Giorgi"]
[Black "Primbetov, Kazbek"]
[Result "1-0"]
[ECO "A06"]
[WhiteElo "2408"]
[BlackElo "2257"]
[Annotator "NA"]
[PlyCount "59"]
[EventDate "2018.07.03"]
[EventType "swiss"]
[EventCountry "GEO"]
[SourceTitle "playchess.com"]
[Source "ChessBase"]
[SourceQuality "1"]
[TimeControl "40/5400+30:1800+30"]

1. Nf3 {[%emt 0:03:21]} d5 {[%emt 0:00:00]} 2. b3 {[%emt 0:00:27]} c5 {[%emt 0:04:23]} 3. e3 {[%emt 0:01:03]} Nc6 {[%emt 0:03:06]} 4. Bb5 {[%emt 0:01:33]} Qb6 {[%emt 0:00:25]} 5. Bxc6+ {[%emt 0:02:57]} Qxc6 {[%emt 0:01:14]} 6. Bb2 {[%emt 0:00:37]} f6 {[%emt 0:04:01]} 7. d4 {[%emt 0:06:15]} Bg4 {[%emt 0:02:01]} 8. O-O {[%emt 0:07:32]} e6 {[%emt 0:03:08]} 9. Nbd2 {[%emt 0:01:38]} c4 {[%emt 0:03:53]} (9... cxd4 $1 $15 10. Nxd4 (10. Bxd4 e5 $11) (10. exd4 Bd6 $11) 10... Bxd1 11. Nxc6 Bh5) 10. bxc4 {[%emt 0:02:05]} dxc4 {[%emt 0:00:54]} 11. c3 {[%emt 0:00:18]} Bd6 {[%emt 0:00:07]} 12. a4 $11 {[%emt 0:01:23]} Ne7 {[%emt 0:07:16]} 13. Ba3 {[%emt 0:12:39]} Bxa3 {[%emt 0:01:45]} 14. Rxa3 {[%emt 0:00:51]} Bf5 {[%emt 0:00:24]} 15. Re1 {[%emt 0:05:33]} Bd3 {[%emt 0:03:58]} 16. e4 {[%emt 0:01:50]} O-O {[%emt 0:00:17]} 17. Re3 {[%emt 0:03:06]} e5 {[%emt 0:08:46]} 18. Ne1 {[%emt 0:12:24]} Qd6 {[%emt 0:11:26]} 19. Ra2 {[%emt 0:01:04]} exd4 {[%emt 0:00:25]} 20. cxd4 {[%emt 0:00:06]} Qxd4 {[%emt 0:00:19]} 21. Nxd3 {[%emt 0:00:16]} cxd3 {[%emt 0:00:20]} 22. Qb3+ {[%emt 0:00:23]} Kh8 {[%emt 0:01:46]} 23. Rxd3 {[%emt 0:00:41]} Qc5 {[%emt 0:02:22]} 24. Rc2 {[%emt 0:01:38]} Qa5 {[%emt 0:01:17]} 25. Rd7 {[%emt 0:05:23]} Rad8 {[%emt 0:15:09]} 26. Rxe7 {[%emt 0:08:45]} Rxd2 {[%emt 0:00:26]} 27. Rxd2 {[%emt 0:00:14]} Qxd2 {[%emt 0:00:07]} 28. g3 {[%emt 0:00:16]} Qe1+ {[%emt 0:06:21]} 29. Kg2 {[%emt 0:00:06]} b6 {[%emt 0:00:23]} 30. Qf7 {[%emt 0:00:53]} 1-0

[Event "4th Batumi Cup 2018"]
[Site "Batumi"]
[Date "2018.07.04"]
[Round "3"]
[White "Rahul Srivatshav P"]
[Black "Martynyuk, Elizaveta"]
[Result "1-0"]
[ECO "B51"]
[WhiteElo "2397"]
[BlackElo "2182"]
[Annotator "NA"]
[PlyCount "109"]
[EventDate "2018.07.03"]
[EventType "swiss"]
[EventCountry "GEO"]
[SourceTitle "playchess.com"]
[Source "ChessBase"]
[SourceQuality "1"]
[TimeControl "40/5400+30:1800+30"]

1. e4 {[%emt 0:00:00]} c5 {[%emt 0:00:18]} 2. Nf3 {[%emt 0:00:20]} Nc6 {[%emt 0:00:13]} 3. Bb5 {[%emt 0:00:19]} d6 {[%emt 0:00:04]} 4. Bxc6+ {[%emt 0:00:25]} bxc6 {[%emt 0:00:05]} 5. O-O {[%emt 0:00:35]} e5 {[%emt 0:00:08]} 6. c3 {[%emt 0:00:44]} Nf6 {[%emt 0:00:07]} 7. Re1 {[%emt 0:00:23]} Bg4 {[%emt 0:00:06]} 8. h3 {[%emt 0:00:47]} Bh5 {[%emt 0:00:11]} 9. d4 {[%emt 0:01:02]} cxd4 {[%emt 0:00:16]} 10. cxd4 {[%emt 0:00:12]} Nd7 {[%emt 0:00:49]} 11. Be3 {[%emt 0:00:49]} Be7 {[%emt 0:00:25]} 12. Nbd2 {[%emt 0:00:39]} exd4 {[%emt 0:00:29]} 13. Bxd4 {[%emt 0:00:21]} O-O {[%emt 0:00:09]} 14. Rc1 {[%emt 0:03:00]} Rc8 {[%emt 0:03:35]} 15. Nf1 {[%emt 0:04:27]} Bg5 {[%emt 0:05:32]} 16. Rc2 {[%emt 0:16:09]} Bf4 {[%emt 0:05:18]} 17. Ne3 $11 {[%emt 0:09:30]} Bg6 {[%emt 0:03:38]} 18. Nf5 {[%emt 0:02:10]} Bxf5 {[%emt 0:00:27]} 19. exf5 {[%emt 0:00:13]} Qa5 {[%emt 0:02:29]} 20. g3 {[%emt 0:19:12]} Bh6 {[%emt 0:04:22]} 21. g4 {[%emt 0:03:55]} f6 {[%emt 0:02:05]} 22. Re7 {[%emt 0:04:10]} Rf7 {[%emt 0:04:49]} 23. Re6 {[%emt 0:09:36]} Qd5 {[%emt 0:03:08]} 24. Qe2 {[%emt 0:02:51]} Nf8 {[%emt 0:01:26]} 25. Re4 {[%emt 0:00:48]} Qxa2 {[%emt 0:01:12]} 26. Kg2 {[%emt 0:03:26]} Qb3 {[%emt 0:01:14]} 27. Rc3 {[%emt 0:00:33]} Qb7 {[%emt 0:00:17]} 28. b4 {[%emt 0:03:40]} d5 {[%emt 0:00:51]} 29. Re8 {[%emt 0:01:02]} Rxe8 {[%emt 0:01:13]} 30. Qxe8 {[%emt 0:00:03]} Qxb4 {[%emt 0:00:28]} 31. Rxc6 {[%emt 0:00:37]} Re7 {[%emt 0:03:12]} 32. Qc8 {[%emt 0:01:25]} Qb7 {[%emt 0:01:32]} 33. Bc5 {[%emt 0:00:43]} Qxc8 {[%emt 0:03:59]} 34. Rxc8 {[%emt 0:00:02]} Rf7 {[%emt 0:00:07]} 35. Nd4 {[%emt 0:01:10]} g6 {[%emt 0:00:13]} 36. Ne6 {[%emt 0:03:49]} gxf5 {[%emt 0:00:14]} 37. gxf5 {[%emt 0:00:28]} a5 {[%emt 0:00:49]} 38. Kf3 {[%emt 0:02:26]} a4 {[%emt 0:00:25]} 39. Ke2 {[%emt 0:00:45]} Bg7 {[%emt 0:01:35]} 40. Kd3 {[%emt 0:00:00]} Bh6 {[%emt 0:00:00]} 41. Kd4 {[%emt 0:01:24]} Bg7 {[%emt 0:02:38]} 42. Ba3 {[%emt 0:00:32]} Bh6 {[%emt 0:00:31]} 43. h4 {[%emt 0:00:10]} Bg7 {[%emt 0:00:15]} 44. h5 {[%emt 0:00:22]} Bh6 {[%emt 0:00:06]} 45. Kxd5 {[%emt 0:01:17]} Rd7+ {[%emt 0:00:09]} 46. Kc6 {[%emt 0:00:51]} Rf7 {[%emt 0:00:46]} 47. Bc5 {[%emt 0:00:52]} Bg7 {[%emt 0:00:18]} 48. Rb8 {[%emt 0:00:22]} Bh6 {[%emt 0:00:58]} 49. Kb5 {[%emt 0:00:13]} Bg7 {[%emt 0:00:09]} 50. Kxa4 {[%emt 0:00:07]} Bh6 {[%emt 0:00:21]} 51. Kb5 {[%emt 0:00:19]} Bg7 {[%emt 0:00:13]} 52. Kc6 {[%emt 0:00:21]} Bh6 {[%emt 0:00:08]} 53. Bxf8 {[%emt 0:00:37]} Bxf8 {[%emt 0:00:31]} 54. h6 {[%emt 0:00:18]} Kh8 {[%emt 0:05:30]} 55. Nxf8 {[%emt 0:00:12]} 1-0